bitfinex/quotes_ETHUSD_20250630
["timestamp","ask_amount","ask_price","bid_price","bid_amount"]
[1751292436926,0.2032,2460.2,2460.1,4.06487541]
[1751292437125,4.06350324,2461.0,2460.3,4.06447153]
[1751292437126,4.06372314,2460.8,2460.3,4.06447153]
[1751292437295,0.55,2460.7,2460.3,4.06447153]
[1751292437895,10.156,2461.1,2460.5,0.7693]
[1751292437896,1.748,2460.6,2460.5,0.7693]
[1751292438093,1.748,2460.7,2460.6,4.06393543]
[1751292438326,8.6444,2460.7,2460.6,4.06393543]
[1751292438701,8.442,2460.7,2460.6,4.95368043]
[1751292441557,0.2024,2460.9,2460.8,4.06371911]
[1751292441746,0.02,2461.0,2460.9,4.89175398]
[1751292441951,0.57,2461.0,2460.6,0.8282]
[1751292442250,1.3357,2461.0,2460.7,4.06387236]
[1751292442413,0.2024,2460.8,2460.4,4.06437977]
[1751292442620,8.6454,2460.8,2460.7,4.06388426]
[1751292443344,0.2024,2460.8,2460.7,4.81948426]
[1751292444058,0.2024,2460.8,2460.7,4.06388426]
[1751292444358,8.6464,2460.8,2460.7,4.06388426]
[1751292444655,0.57,2461.0,2460.9,4.06355398]
[1751292444656,0.2224,2461.0,2460.9,4.06355398]
[1751292444855,0.2224,2461.0,2460.9,8.82355398]
[1751292445046,0.02,2461.0,2460.9,4.86875398]
[1751292445226,0.02,2461.0,2460.9,5.07115398]
[1751292445654,0.02,2461.0,2460.9,15.07115398]
[1751292445854,0.02,2461.0,2460.9,15.58146647]
[1751292446256,0.02,2461.0,2460.9,5.07115398]
[1751292446455,0.02,2461.0,2460.8,4.06362989]
[1751292446757,6.724,2461.0,2460.6,0.9729]
[1751292446959,0.2024,2460.7,2460.4,4.06437977]
[1751292447262,1.9504,2460.7,2460.5,4.06413857]
[1751292447556,1.9504,2460.7,2460.6,4.06404941]
[1751292448160,1.9504,2460.7,2460.5,4.06412364]
[1751292448451,1.9504,2460.7,2460.3,5.06478097]
[1751292448626,1.9504,2460.7,2460.5,4.06405126]
[1751292448627,0.2024,2460.7,2460.5,4.06405126]
[1751292448821,1.748,2460.6,2460.5,4.06405126]
[1751292449353,0.2024,2460.7,2460.6,4.06404941]
[1751292449661,1.9504,2460.7,2460.6,4.06404941]
[1751292449846,6.701,2460.8,2460.7,4.06377616]
[1751292450034,0.2024,2460.9,2460.8,4.06371911]
[1751292450448,8.449,2460.9,2460.8,4.06371911]
[1751292450669,1.748,2460.9,2460.8,4.06371911]
[1751292451470,6.9234,2461.0,2460.8,4.06371911]
[1751292451471,0.2224,2461.0,2460.9,4.06355398]
[1751292453138,0.2224,2461.0,2460.8,4.84807587]
[1751292453344,1.85724,2461.0,2460.6,4.06398637]
[1751292453654,1.65484,2461.0,2460.6,4.06398637]
[1751292453857,0.2024,2460.9,2460.7,4.063869]
[1751292454057,0.2024,2460.9,2460.6,4.0639789]
[1751292454561,0.2024,2460.9,2460.5,4.06416895]
[1751292454766,0.55,2460.8,2460.7,4.76]
[1751292456049,4.61371911,2460.8,2460.7,4.76]
[1751292456271,4.61371911,2460.8,2460.4,4.76]
[1751292456496,4.6141465,2460.6,2460.2,4.76]
[1751292456791,0.2032,2460.3,2460.2,4.76]
[1751292457675,4.81774497,2460.3,2460.2,4.76]
[1751292458175,0.7532,2460.3,2460.2,4.76]
[1751292458377,9.2012,2460.3,2460.2,4.76]
[1751292459375,4.06394956,2460.7,2460.2,9.59041018]
[1751292459574,0.2032,2460.5,2460.2,9.59041018]
[1751292459779,0.2032,2460.5,2460.3,4.06454497]
[1751292459960,1.9512,2460.5,2460.4,4.06437977]
[1751292460666,1.9512,2460.5,2460.4,4.76]
[1751292460877,2.81632,2460.5,2460.4,4.76]
[1751292461054,1.9512,2460.5,2460.4,4.76]
[1751292461458,0.2032,2460.5,2460.4,8.82437977]
[1751292461768,0.2032,2460.5,2460.4,4.76]
[1751292461769,1.9512,2460.5,2460.4,4.76]
[1751292462166,1.9512,2460.5,2460.4,8.82437977]
[1751292462566,1.9512,2460.5,2460.4,4.76]
[1751292463647,7.38151459,2460.5,2460.4,4.76]
[1751292463879,5.13195751,2460.5,2460.4,4.76]
[1751292464381,9.1961721,2460.5,2460.4,4.76]
[1751292465670,5.13195751,2460.5,2460.4,4.76]
[1751292466075,9.1961721,2460.5,2460.4,4.76]
[1751292466272,2.56785751,2460.5,2460.4,4.76]
[1751292466499,2.56785751,2460.5,2459.9,0.01]
[1751292466500,4.61438592,2460.4,2460.0,8.82495778]
[1751292466792,0.2032,2460.2,2460.0,8.82495778]
[1751292468799,0.2032,2460.2,2460.0,4.76]
[1751292469165,5.38735341,2460.2,2460.0,4.76]
[1751292469365,5.38735341,2460.2,2459.9,4.77]
[1751292469366,0.2032,2460.0,2459.9,4.77]
[1751292469597,1.9622,2460.0,2459.9,4.77]
[1751292469962,2.5122,2460.0,2459.9,0.01]
[1751292470795,0.2032,2460.0,2459.9,4.0752059]
[1751292470996,1.759,2460.0,2459.9,5.26062649]
[1751292471501,6.9042,2460.2,2460.1,4.06487541]
[1751292471502,0.2032,2460.2,2460.1,4.06487541]
[1751292471688,1.9622,2460.2,2460.1,4.06487541]
[1751292472100,1.9622,2460.2,2460.0,4.06491624]
[1751292472782,1.9622,2460.2,2460.1,4.06487541]
[1751292473303,0.2032,2460.2,2460.1,4.06487541]
[1751292473500,0.2032,2460.2,2460.1,4.95654457]
[1751292474004,1.759,2460.3,2460.2,4.06471018]
[1751292475089,0.2032,2460.5,2460.3,4.06444871]
[1751292475270,6.9082,2460.5,2460.4,4.06437977]
[1751292475475,1.759,2460.4,2460.3,8.82447274]
[1751292475682,1.759,2460.4,2460.3,4.76]
[1751292476201,7.64650578,2460.4,2460.3,4.76]
[1751292476418,8.41150578,2460.4,2460.3,4.76]
[1751292476578,18.41150578,2460.4,2460.3,4.76]
[1751292476774,4.61487541,2460.1,2460.0,0.01]
[1751292477005,13.03691745,2460.1,2460.0,0.01]
[1751292477206,23.03691745,2460.1,2460.0,0.01]
[1751292479995,23.03691745,2460.1,2460.0,0.01]
[1751292480515,16.33191745,2460.1,2460.0,0.01]
[1751292480694,24.79691745,2460.1,2460.0,0.01]
[1751292481810,24.79391745,2460.1,2460.0,0.01]
[1751292481995,16.33191745,2460.1,2460.0,0.01]
[1751292482197,24.79391745,2460.1,2460.0,0.01]
[1751292482497,14.24291745,2460.1,2460.0,0.01]
[1751292482694,9.7836,2460.1,2460.0,0.01]
[1751292483003,23.85047541,2460.1,2460.0,0.01]
[1751292485577,23.84747541,2460.1,2460.0,0.01]
[1751292489506,53.84747541,2460.1,2460.0,0.01]
[1751292491936,54.05382927,2460.1,2460.0,0.01]
[1751292492103,58.36628291,2460.1,2460.0,0.01]
[1751292492298,28.15992905,2460.1,2460.0,0.01]
[1751292492626,49.69992905,2460.1,2460.0,0.01]
[1751292492934,58.15792905,2460.1,2460.0,0.01]
[1751292493247,58.36525446,2460.1,2460.0,0.01]
[1751292493806,62.64425446,2460.1,2460.0,0.01]
[1751292495506,49.85404065,2460.0,2459.9,0.01]
[1751292495712,0.55,2459.3,2459.2,0.01]
[1751292495938,45.29063609,2459.3,2459.2,0.01]
[1751292496323,75.29063609,2459.3,2459.2,0.01]
[1751292496527,79.56963609,2459.3,2459.2,0.01]
[1751292498643,4.61669377,2459.0,2458.9,0.2152905]
[1751292498840,0.55,2458.0,2457.8,5.555]
[1751292499043,4.06826346,2458.1,2457.8,5.555]
[1751292499044,8.998,2457.9,2457.8,0.795]
[1751292499209,8.998,2457.9,2457.5,0.8152]
[1751292499210,0.55,2457.8,2457.5,0.8152]
[1751292499411,6.695,2457.7,2457.5,0.8152]
[1751292499646,0.55,2457.8,2457.5,4.88437599]
[1751292499823,6.694,2457.9,2457.6,4.82534144]
[1751292500023,6.694,2457.9,2457.6,4.82531653]
[1751292500342,6.694,2457.9,2457.6,0.7564]
[1751292500545,0.7562,2457.4,2456.5,3.44298756]
[1751292500746,4.07149546,2456.1,2456.0,3.22769706]
[1751292500949,8.525,2456.1,2456.0,4.07166123]
[1751292501147,0.55,2456.4,2456.2,4.07132969]
[1751292501316,4.06934158,2457.4,2456.7,4.07048097]
[1751292501654,11.42333416,2457.4,2456.5,0.7841]
[1751292501848,10.164,2457.5,2456.5,0.7841]
[1751292502047,8.556,2457.4,2456.5,0.7841]
[1751292502246,0.55,2457.3,2457.0,4.06998828]
[1751292502548,6.804,2457.2,2456.6,4.0705596]
[1751292502850,10.164,2457.5,2456.8,4.07023643]
[1751292502851,0.55,2457.1,2456.8,4.07023643]
[1751292503069,6.806,2457.0,2456.7,4.07040852]
[1751292503368,6.806,2457.0,2456.5,4.85490257]
[1751292503369,0.55,2456.9,2456.5,0.7841]
[1751292503535,0.55,2456.9,2456.6,4.07056923]
[1751292503726,0.55,2456.9,2456.5,0.7841]
[1751292503924,0.55,2456.9,2456.5,4.85482525]
[1751292504169,4.06953043,2457.3,2456.5,4.85482525]
[1751292504170,0.55,2457.2,2456.6,4.07066677]
[1751292504364,0.55,2456.8,2456.6,4.07059111]
[1751292504665,0.55,2456.8,2456.7,4.07050107]
[1751292504883,1.755,2457.3,2456.5,0.7841]
[1751292505028,1.755,2457.3,2457.2,4.06967279]
[1751292505365,8.563,2457.3,2456.7,4.84456116]
[1751292505550,0.55,2457.4,2456.8,4.07030013]
[1751292505879,0.2032,2456.9,2456.8,4.07030013]
[1751292506079,7.0142,2456.9,2456.8,4.07030013]
[1751292506230,0.2032,2456.9,2456.8,4.07030013]
[1751292506430,6.809,2457.0,2456.7,4.84468251]
[1751292506676,0.2032,2457.1,2457.0,4.07000407]
[1751292506844,7.0132,2457.1,2457.0,4.07000407]
[1751292507360,11.1804,2457.5,2457.0,4.07000407]
[1751292507361,10.164,2457.5,2457.4,4.06934158]
[1751292507561,10.164,2457.5,2457.3,4.85524672]
[1751292507562,18.9302,2457.5,2457.3,4.85524672]
[1751292507726,10.3672,2457.5,2457.4,4.06934158]
[1751292507929,12.1222,2457.5,2457.4,4.06934158]
[1751292508150,0.2032,2457.5,2457.4,4.57842706]
[1751292508659,10.7877,2458.4,2457.7,4.06881315]
[1751292508831,0.2032,2457.9,2457.4,0.71228548]
[1751292509031,0.2032,2457.9,2457.8,4.06865104]
[1751292509262,7.0122,2457.9,2457.8,4.82725104]
[1751292509867,7.5622,2457.9,2457.5,4.83484269]
[1751292510065,7.359,2457.9,2457.5,0.7658]
[1751292510372,0.2032,2457.7,2457.5,4.83486763]
[1751292510552,7.359,2457.9,2457.1,0.8078]
[1751292510747,0.55,2457.5,2457.1,0.8078]
[1751292510939,12.63835252,2457.4,2457.1,0.8078]
[1751292511142,8.569,2457.4,2457.1,0.8078]
[1751292511341,12.63836414,2457.4,2457.1,0.8078]
[1751292511583,4.0695246,2457.3,2457.1,0.8078]
[1751292511892,4.06987923,2457.1,2456.7,0.7972]
[1751292512035,6.811,2457.0,2456.7,0.7972]
[1751292512238,2.305,2456.9,2455.7,4.07215263]
[1751292512460,0.55,2456.7,2455.8,1.38721526]
[1751292512770,0.9116,2456.8,2455.8,0.8045]
[1751292512771,0.55,2456.3,2455.8,0.8045]
[1751292512971,4.62182702,2455.9,2455.1,0.7864]
[1751292513147,4.07216781,2455.7,2455.1,4.85951462]
[1751292513347,4.07168619,2456.0,2455.4,4.07250247]
[1751292513646,4.62145344,2456.2,2455.1,1.27235146]
[1751292513647,12.6469234,2455.9,2455.1,1.27235146]
[1751292513862,8.575,2455.9,2455.1,1.27235146]
[1751292514210,0.55,2455.8,2455.1,1.27235146]
[1751292514362,5.53464329,2455.8,2455.2,4.07287958]
[1751292514559,1.4625,2455.8,2455.2,4.07287958]
[1751292514760,5.53459941,2455.8,2455.2,4.07287958]
[1751292514959,5.53459941,2455.8,2455.1,0.7864]
[1751292514960,8.58,2455.7,2455.1,0.7864]
[1751292515164,1.4625,2455.8,2454.8,0.764]
[1751292515364,19.334,2455.7,2455.2,4.07293735]
[1751292515571,0.9125,2455.8,2454.1,0.2152905]
[1751292515572,0.9125,2455.8,2454.8,10.0]
[1751292515757,8.672,2455.7,2454.9,0.8252]
[1751292515956,10.0,2456.3,2455.2,4.07287421]
[1751292515957,8.672,2455.6,2455.2,4.07287421]
[1751292516175,1.836,2455.5,2454.9,0.8252]
[1751292516385,0.55,2455.7,2454.9,0.8252]
[1751292516556,0.55,2455.5,2454.9,0.8252]
[1751292516757,1.5274,2455.5,2455.1,4.07306114]
[1751292517161,1.5274,2455.5,2455.1,4.07307878]
[1751292517345,8.677,2455.4,2455.2,4.07290313]
[1751292517774,8.677,2455.4,2455.1,4.07307927]
[1751292517978,0.55,2455.5,2455.3,4.07282205]
[1751292518181,1.836,2455.4,2454.9,0.8252]
[1751292518379,8.675,2455.4,2454.9,0.8252]
[1751292518554,0.55,2455.1,2454.5,4.88773043]
[1751292518888,0.55,2455.1,2454.4,4.07425559]
[1751292518889,4.62340255,2455.0,2454.4,4.07425559]
[1751292519071,0.55,2454.8,2454.5,4.07412596]
[1751292519249,0.55,2454.8,2454.5,4.07410454]
[1751292519458,1.4738,2454.8,2454.2,0.7825]
[1751292519652,10.0,2455.1,2454.2,0.7825]
[1751292519848,0.55,2454.9,2454.5,4.07412141]
[1751292520054,0.55,2454.9,2454.3,4.07448152]
[1751292520276,12.76044755,2455.0,2454.2,4.07451511]
[1751292520277,12.76170007,2454.8,2454.2,4.07451511]
[1751292520454,12.76174781,2454.8,2454.2,4.07460716]
[1751292520649,0.2032,2454.4,2454.1,4.29004943]
[1751292520900,0.2032,2454.4,2454.1,0.2152905]
[1751292520901,0.55,2454.2,2454.1,0.2152905]
[1751292521063,8.691,2454.2,2454.1,0.2152905]
[1751292521386,9.241,2454.2,2454.1,0.2152905]
[1751292521949,8.691,2454.2,2454.1,4.29010407]
[1751292522153,9.241,2454.2,2454.1,0.2152905]
[1751292522350,0.55,2454.2,2454.1,4.29010407]
[1751292522594,8.692,2454.2,2454.1,0.2152905]
[1751292522796,15.49384754,2454.2,2454.1,0.2152905]
[1751292523158,24.20484754,2454.2,2454.1,0.2152905]
[1751292523384,26.50454754,2454.2,2454.1,0.2152905]
[1751292523688,11.6312,2454.2,2454.1,0.2152905]
[1751292523891,10.762,2454.2,2454.1,0.2152905]
[1751292524272,16.92434754,2454.2,2454.1,0.2152905]
[1751292524470,4.62514568,2453.9,2453.8,0.31773604]
[1751292524669,26.75699821,2453.9,2453.8,0.31773604]
[1751292524870,57.58539821,2453.9,2453.8,0.31773604]
[1751292525179,36.31839821,2453.9,2453.8,0.31773604]
[1751292525493,27.58539821,2453.9,2453.8,0.31773604]
[1751292525863,36.31839821,2453.9,2453.8,0.31773604]
[1751292526158,0.7538,2453.0,2451.6,0.9688905]
[1751292526498,4.07547784,2453.7,2451.6,0.2152905]
[1751292526499,4.07848781,2451.9,2451.6,0.2152905]
[1751292526702,4.07880246,2451.7,2451.6,0.2152905]
[1751292526901,14.07880246,2451.7,2451.6,0.2152905]
[1751292527194,44.07880246,2451.7,2451.6,0.2152905]
[1751292527397,44.8909009,2451.1,2451.0,0.2]
[1751292527578,23.8349009,2451.1,2451.0,0.2]
[1751292527779,53.9299009,2451.1,2451.0,0.2]
[1751292527994,9.12,2451.1,2451.0,0.2]
[1751292528180,10.55,2451.1,2451.0,0.2]
[1751292528380,0.55,2451.1,2451.0,0.2]
[1751292528884,0.55,2451.1,2451.0,4.27996736]
[1751292529112,0.55,2451.1,2451.0,5.07626736]
[1751292529278,0.55,2451.3,2451.2,4.07963446]
[1751292529476,10.188,2452.1,2451.1,4.0798009]
[1751292529806,10.188,2452.1,2451.9,4.07846975]
[1751292529807,2.007,2452.0,2451.9,4.07846975]
[1751292530010,0.8188,2453.5,2451.5,0.8074]
[1751292530307,9.205,2453.4,2452.8,4.07692713]
[1751292530473,1.00238,2453.3,2452.7,4.07712112]
[1751292530674,10.755,2453.3,2452.7,4.07706223]
[1751292530893,10.755,2453.3,2452.5,4.07747196]
[1751292531104,1.5,2453.3,2452.1,4.0781371]
[1751292531306,9.369,2453.2,2452.3,4.07780451]
[1751292531605,9.369,2453.2,2452.7,4.07713649]
[1751292531815,9.372,2453.1,2452.8,4.07693384]
[1751292532119,1.5,2453.3,2452.0,0.7767]
[1751292532325,2.093,2453.1,2452.1,10.48551047]
[1751292532608,10.188,2453.6,2453.5,4.07581006]
[1751292532918,2.093,2453.7,2453.6,4.07564395]
[1751292533288,2.093,2453.7,2452.9,0.795]
[1751292533503,0.02,2453.9,2453.6,4.07564395]
[1751292533706,0.02,2453.9,2453.0,4.07664084]
[1751292533909,0.02,2453.9,2453.8,4.07531176]
[1751292534394,0.02,2453.9,2453.7,0.2032]
[1751292534582,0.02,2453.9,2453.8,4.07531176]
[1751292535731,0.02,2453.9,2453.8,14.27851176]
[1751292537487,0.02,2453.9,2453.8,4.27851176]
[1751292538290,0.02,2453.9,2453.8,4.07531176]
[1751292538514,0.02,2453.9,2453.7,4.07541675]
[1751292538716,0.02,2453.9,2453.6,1.0303]
[1751292538877,0.02,2453.9,2453.4,0.40761103]
[1751292539078,0.57,2453.9,2453.3,0.7994]
[1751292539301,0.2032,2453.8,2453.6,4.07554614]
[1751292539795,0.2032,2453.8,2453.6,4.07561958]
[1751292539992,2.093,2453.7,2453.6,4.07561958]
[1751292540393,0.2232,2453.9,2453.6,4.07561958]
[1751292540726,2.093,2453.8,2453.7,4.07546593]
[1751292540919,0.02,2453.9,2453.8,4.07531176]
[1751292541219,2.113,2453.9,2453.8,4.07531176]
[1751292541384,2.113,2453.9,2453.7,0.2032]
[1751292541584,2.113,2453.9,2453.3,0.7994]
[1751292541782,2.113,2453.9,2453.5,4.27887324]
[1751292542012,0.02,2453.9,2453.8,4.07531176]
[1751292542222,2.113,2453.9,2453.7,4.07542492]
[1751292542419,2.113,2453.9,2453.3,4.87539425]
[1751292542420,4.07545721,2453.8,2453.3,0.7994]
[1751292542629,0.2032,2453.8,2453.3,0.2032]
[1751292542789,0.2032,2453.3,2452.9,4.86142613]
[1751292542979,2.093,2453.2,2452.9,0.7847]
[1751292543184,0.55,2453.7,2452.9,4.86148832]
[1751292543423,0.2032,2453.5,2453.1,4.27966699]
[1751292543634,0.2032,2453.5,2453.1,1.11731553]
[1751292543817,2.093,2453.4,2453.3,4.07606335]
[1751292543988,2.093,2453.4,2453.2,4.27937863]
[1751292543989,2.093,2453.4,2453.2,0.2032]
[1751292544192,2.093,2453.4,2453.1,0.2032]
[1751292544721,2.093,2453.4,2452.3,10.0]
[1751292544722,2.093,2453.3,2453.0,4.07656]
[1751292544883,2.093,2453.3,2453.1,4.07645267]
[1751292545088,7.254,2453.5,2453.2,4.07621581]
[1751292545294,7.254,2453.5,2453.1,0.2032]
[1751292545295,2.093,2453.4,2453.1,0.2032]
[1751292545515,2.093,2453.4,2453.0,0.8262]
[1751292545516,0.02,2453.8,2453.3,4.07614233]
[1751292545817,2.093,2453.7,2453.6,4.07550098]
[1751292545996,2.093,2453.7,2453.5,4.27894367]
[1751292546511,2.093,2453.7,2453.0,4.90276536]
[1751292546705,2.093,2453.7,2453.6,4.07564395]
[1751292546917,0.02,2453.8,2453.7,4.07547784]
[1751292547112,2.113,2453.8,2453.5,4.07578883]
[1751292547492,2.113,2453.8,2453.6,4.07560748]
[1751292548040,2.113,2453.8,2453.6,4.07548284]
[1751292548195,2.113,2453.8,2453.4,4.07591391]
[1751292548392,2.113,2453.8,2453.6,4.07562573]
[1751292548824,2.113,2453.8,2453.3,8.83610258]
[1751292549029,2.113,2453.8,2453.3,10.0]
[1751292549225,2.113,2453.8,2453.5,4.07571945]
[1751292549592,2.113,2453.8,2453.6,4.07564141]
[1751292549795,0.02,2453.8,2453.7,4.07547784]
[1751292550193,2.113,2453.8,2453.7,4.07547784]
[1751292551008,0.02,2453.8,2453.7,4.07547784]
[1751292552842,0.02,2453.8,2453.3,14.76]
[1751292553141,0.02,2453.8,2453.6,4.07563734]
[1751292553313,0.02,2453.8,2453.3,14.76]
[1751292553633,0.02,2453.8,2453.1,4.07640375]
[1751292553634,14.1528902,2453.7,2453.1,4.07640375]
[1751292553801,14.15292545,2453.7,2453.1,4.0764297]
[1751292553999,10.0774,2453.7,2453.0,0.8262]
[1751292554210,10.0774,2453.7,2452.3,4.07768974]
[1751292554211,4.0762132,2453.3,2452.8,4.07688891]
[1751292554411,7.221,2453.2,2452.7,4.07711441]
[1751292554732,7.221,2453.2,2452.3,0.7791]
[1751292554733,2.093,2453.1,2452.6,4.07715112]
[1751292554937,2.093,2453.1,2452.8,4.07688823]
[1751292555315,6.16948332,2453.1,2452.6,4.07723452]
[1751292555516,4.07665928,2453.0,2452.5,4.07740523]
[1751292555812,2.093,2453.1,2452.5,0.89340854]
[1751292556017,2.093,2453.1,2452.8,4.07685722]
[1751292556237,1.06474,2453.6,2452.5,0.89340854]
[1751292556238,5.14042512,2453.6,2453.1,4.07634367]
[1751292556426,0.2032,2453.6,2453.3,4.07607594]
[1751292556628,2.093,2453.7,2453.6,4.07564395]
[1751292556804,0.02,2453.8,2453.7,4.07547784]
[1751292557011,0.02,2453.8,2453.7,5.05807784]
[1751292557319,0.02,2453.8,2453.7,4.27867784]
[1751292557536,2.113,2453.8,2453.7,4.27867784]
[1751292557710,0.02,2453.8,2453.7,4.27867784]
[1751292558228,2.113,2453.8,2453.7,4.27867784]
[1751292558428,2.113,2453.8,2453.7,0.2032]
[1751292558613,2.113,2453.8,2453.7,4.27867784]
[1751292558809,2.113,2453.8,2453.7,0.2032]
[1751292559136,2.113,2453.8,2453.6,0.2032]
[1751292559366,2.113,2453.8,2453.2,0.7628]
[1751292559367,4.07555026,2453.7,2453.2,0.7628]
[1751292559568,4.07555026,2453.7,2453.3,0.2032]
[1751292559768,4.07555026,2453.7,2453.3,4.27933628]
[1751292559982,4.07554143,2453.7,2453.3,0.2032]
[1751292560277,4.07554143,2453.7,2452.9,0.7686]
[1751292560278,0.55,2453.5,2452.9,0.7686]
[1751292560475,0.55,2453.5,2452.9,0.2032]
[1751292560476,0.2032,2453.3,2452.9,0.2032]
[1751292560765,9.296,2453.2,2452.9,0.2032]
[1751292561136,4.07647466,2453.1,2452.9,0.2032]
[1751292561355,4.07647466,2453.1,2452.5,10.793]
[1751292561356,2.05,2453.0,2452.5,10.793]
[1751292561561,2.05,2453.0,2452.9,4.07673948]
[1751292561756,2.05,2453.0,2452.9,0.2032]
[1751292562239,0.2032,2453.3,2452.9,0.2032]
[1751292562455,9.248,2453.2,2452.9,4.27998252]
[1751292562674,9.248,2453.2,2452.9,0.2032]
[1751292562858,13.32435784,2453.2,2452.9,0.2032]
[1751292563585,2.05,2453.1,2453.0,4.07664084]
[1751292563796,0.02,2453.9,2453.7,4.07547784]
[1751292563998,0.02,2453.9,2453.7,15.07297784]
[1751292564152,0.02,2453.9,2453.7,15.79603918]
[1751292564989,0.02,2453.9,2453.7,5.07297784]
[1751292565505,0.02,2453.9,2453.7,0.9975]
[1751292565699,0.02,2453.9,2453.4,10.0]
[1751292565700,9.301,2453.9,2453.3,0.8243]
[1751292565896,0.2232,2453.8,2453.6,4.0755668]
[1751292566102,0.2232,2453.8,2453.4,0.2032]
[1751292566103,1.17562,2453.8,2453.4,0.2032]
[1751292566401,4.07549771,2453.7,2453.4,0.2032]
[1751292566603,0.55,2453.7,2453.0,0.7754]
[1751292566775,0.55,2453.7,2452.5,0.7754]
[1751292566776,0.55,2453.5,2452.5,0.7754]
[1751292566977,0.2032,2453.3,2452.8,0.2032]
[1751292567182,9.279,2453.2,2452.8,0.2032]
[1751292567499,9.279,2453.2,2453.0,4.07654565]
[1751292567901,9.279,2453.2,2452.8,4.28004712]
[1751292568110,9.279,2453.2,2452.8,4.07696455]
[1751292568111,10.63483453,2453.2,2452.8,4.07696455]
[1751292568314,4.27994844,2453.0,2452.5,4.28059156]
[1751292568504,0.2032,2452.7,2452.4,4.07753923]
[1751292568802,0.2032,2452.7,2452.3,0.2032]
[1751292568803,0.2032,2452.7,2452.6,4.07730571]
[1751292568972,0.2032,2452.7,2452.5,4.07746855]
[1751292568973,0.2032,2452.7,2452.5,4.07738903]
[1751292569318,0.2032,2452.7,2452.3,4.28084113]
[1751292569319,0.2032,2452.7,2452.6,4.07730571]
[1751292569799,10.63483453,2453.2,2452.8,4.07695038]
[1751292570015,0.2032,2452.9,2452.8,4.07695038]
[1751292570301,2.05,2452.9,2452.8,4.07697325]
[1751292570496,0.02,2453.5,2453.2,4.07630849]
[1751292570706,9.268,2453.4,2453.1,4.07643698]
[1751292570874,10.70469356,2453.4,2453.1,4.07643698]
[1751292571073,10.70469356,2453.4,2453.2,4.07627623]
[1751292571270,10.70469356,2453.4,2453.1,4.07638574]
[1751292571475,10.70469356,2453.4,2451.9,15.62191503]
[1751292571476,10.70469356,2453.4,2452.9,4.07672389]
[1751292571701,1.07246936,2453.3,2452.1,0.8074]
[1751292571885,9.263,2453.3,2452.1,0.8074]
[1751292572085,4.07631654,2453.2,2452.6,4.07721301]
[1751292572313,9.263,2453.3,2452.1,4.87092088]
[1751292572611,4.07690147,2452.9,2452.4,4.07756899]
[1751292572782,4.86842117,2453.0,2452.5,4.0774498]
[1751292573106,0.89450427,2452.9,2452.5,4.07741804]
[1751292573309,4.07697325,2452.8,2452.3,4.07775613]
[1751292573500,9.265,2452.7,2452.3,4.07775613]
[1751292574017,13.34220777,2452.7,2452.2,4.07789537]
[1751292574383,9.265,2452.7,2451.9,4.07846975]
[1751292574585,10.28095043,2452.7,2452.4,4.07763538]
[1751292574923,0.89450427,2452.9,2452.4,4.07760233]
[1751292575090,2.05,2453.0,2452.9,4.07680704]
[1751292575423,2.05,2453.0,2452.6,4.07720932]
[1751292575607,4.07686316,2452.9,2452.4,4.07754507]
[1751292575805,5.70841812,2452.9,2452.5,4.07747064]
[1751292576138,0.8184,2452.7,2451.9,4.07846975]
[1751292576411,0.8184,2452.7,2451.7,10.7915]
[1751292576412,0.8184,2452.7,2452.5,4.07744217]
[1751292576591,9.261,2452.6,2451.9,4.07846975]
[1751292576787,9.261,2452.6,2452.3,4.07779967]
[1751292577016,9.261,2452.6,2452.4,4.07762171]
[1751292577216,9.261,2452.6,2451.9,4.07846975]
[1751292577381,1.4265737,2452.9,2451.9,4.07846975]
[1751292577581,1.4265737,2452.9,2452.7,4.07711819]
[1751292577582,9.26,2452.8,2452.7,4.07711819]
[1751292577901,1.4265737,2452.9,2452.8,4.07697325]
[1751292578106,2.051,2452.9,2452.8,4.07697325]
[1751292578312,2.051,2452.9,2452.6,4.07721088]
[1751292578617,2.051,2452.9,2452.3,0.7679]
[1751292578918,2.051,2452.8,2452.3,0.7679]
[1751292579118,2.051,2452.8,2452.3,4.07772904]
[1751292579119,6.12806412,2452.8,2452.3,4.07772904]
[1751292579330,4.07731031,2452.6,2451.9,0.7683]
[1751292579508,1.74128813,2452.7,2452.3,4.07771641]
[1751292579687,1.74128813,2452.7,2452.5,4.07745902]
[1751292579888,9.26,2452.6,2452.4,4.07760588]
[1751292580219,9.26,2452.6,2452.1,4.07807763]
[1751292580422,9.26,2452.6,2452.2,4.07788448]
[1751292580619,9.26,2452.6,2452.5,4.07747196]
[1751292580920,9.258,2452.6,2452.3,4.0776809]
[1751292581099,9.258,2452.6,2452.4,4.07756521]
[1751292581490,1.0025,2452.8,2452.5,4.07747196]
[1751292581684,1.0025,2452.8,2452.3,0.40777987]
[1751292581685,0.7993,2452.8,2452.3,0.40777987]
[1751292581892,0.7993,2452.8,2452.5,0.2032]
[1751292582090,0.2032,2452.7,2452.3,4.28096527]
[1751292582286,0.2032,2452.7,2452.4,4.0775514]
[1751292582494,0.2032,2452.7,2452.3,0.2032]
[1751292582720,0.2032,2452.5,2452.0,0.2032]
[1751292583030,7.199,2452.5,2452.4,4.07750448]
[1751292583225,9.25,2452.5,2452.4,4.07750448]
[1751292583518,0.2032,2452.7,2452.6,4.07730571]
[1751292583718,0.2032,2452.7,2452.4,0.2032]
[1751292583719,9.247,2452.7,2452.4,0.2032]
[1751292584218,2.051,2452.7,2452.6,4.07730571]
[1751292584517,2.051,2452.7,2452.6,4.28050571]
[1751292584719,0.2032,2453.0,2452.9,4.07680704]